fUSD/lending_fUSD_20260608
["ID","MTS","AMOUNT","RATE_DAILY","PERIOD"]
[424465395,1780931438000,-1852.9235751,0.00010694,2]
[424465398,1780931438000,-1852.9235751,0.00010694,2]
[424465399,1780931438000,-1852.9235751,0.00010694,2]
[424465403,1780931438000,-1852.9235751,0.00010694,2]
[424465402,1780931438000,-1852.9235751,0.00010694,2]
[424465404,1780931438000,-1852.9235751,0.00010694,2]
[424465400,1780931438000,-1852.9235751,0.00010694,2]
[424465401,1780931438000,-1852.9235751,0.00010694,2]
[424465405,1780931438000,-1852.9235751,0.00010694,2]
[424465373,1780931438000,-467.1285879,0.00010694,2]
[424465391,1780931438000,-1852.9235751,0.00010694,2]
[424465379,1780931438000,-1852.9235751,0.00010694,2]
[424465349,1780931438000,-500.0,0.00010694,2]
[424465374,1780931438000,-1852.9235751,0.00010694,2]
[424465345,1780931438000,-500.0,0.00010694,2]
[424465346,1780931438000,-500.0,0.00010694,2]
[424465348,1780931438000,-192.7924666,0.00010694,2]
[424465407,1780931438000,-1852.9235751,0.00010694,2]
[424465347,1780931438000,-500.0,0.00010694,2]
[424465353,1780931438000,-500.0,0.00010694,2]
[424465352,1780931438000,-500.0,0.00010694,2]
[424465351,1780931438000,-220.78126582,0.00010694,2]
[424465350,1780931438000,-375.10232851,0.00010694,2]
[424465355,1780931438000,-500.0,0.00010694,2]
[424465354,1780931438000,-500.0,0.00010694,2]
[424465356,1780931438000,-256.43682364,0.00010694,2]
[424465357,1780931438000,-500.0,0.00010694,2]
[424465361,1780931438000,-500.0,0.00010694,2]
[424465360,1780931438000,-1852.9235751,0.00010694,2]
[424465359,1780931438000,-500.0,0.00010694,2]
[424465362,1780931438000,-1852.9235751,0.00010694,2]
[424465364,1780931438000,-500.0,0.00010694,2]
[424465365,1780931438000,-500.0,0.00010694,2]
[424465366,1780931438000,-500.0,0.00010694,2]
[424465367,1780931438000,-1852.9235751,0.00010694,2]
[424465363,1780931438000,-500.0,0.00010694,2]
[424465370,1780931438000,-500.0,0.00010694,2]
[424465368,1780931438000,-351.76818284,0.00010694,2]
[424465371,1780931438000,-649.53489107,0.00010694,2]
[424465369,1780931438000,-500.0,0.00010694,2]
[424465380,1780931438000,-1852.9235751,0.00010694,2]
[424465372,1780931438000,-268.65905821,0.00010694,2]
[424465377,1780931438000,-1852.9235751,0.00010694,2]
[424465375,1780931438000,-1852.9235751,0.00010694,2]
[424465408,1780931438000,-1852.9235751,0.00010694,2]
[424465358,1780931438000,-500.0,0.00010694,2]
[424465411,1780931438000,-1852.9235751,0.00010694,2]
[424465438,1780931438000,-500.0,0.00010825,2]
[424465445,1780931438000,-185.51206649,0.00011001,2]
[424465446,1780931438000,-3096.73375128,0.00011001,2]
[424465447,1780931438000,-1157.24145844,0.00011001,2]
[424465448,1780931438000,-1400.26,0.00011009,2]
[424465449,1780931438000,-621.10232979,0.00011009,2]
[424465450,1780931438000,-154.66595597,0.00011011,2]
[424465453,1780931438000,-31607.0,0.00011068,2]
[424465454,1780931438000,-500.0,0.00011098,2]
[424465452,1780931438000,-250.0,0.00011053,2]
[424465451,1780931438000,-1957.11853123,0.00011053,2]
[424465455,1780931438000,-42325.53412396,0.00011099,2]
[424465457,1780931438000,-42325.53412395,0.00011099,2]
[424465456,1780931438000,-42325.53412395,0.00011099,2]
[424465458,1780931438000,-42325.53412395,0.00011099,2]
[424465471,1780931438000,-35149.41431498,0.00011099,2]
[424465460,1780931438000,-42325.53412395,0.00011099,2]
[424465461,1780931438000,-42325.53412395,0.00011099,2]
[424465459,1780931438000,-42325.53412395,0.00011099,2]
[424465462,1780931438000,-42325.53412395,0.00011099,2]
[424465464,1780931438000,-35149.41431501,0.00011099,2]
[424465466,1780931438000,-35149.41431498,0.00011099,2]
[424465468,1780931438000,-35149.41431498,0.00011099,2]
[424465469,1780931438000,-35149.41431498,0.00011099,2]
[424465463,1780931438000,-500.0,0.00011099,2]
[424465467,1780931438000,-35149.41431498,0.00011099,2]
[424465472,1780931438000,-35149.41431498,0.00011099,2]
[424465470,1780931438000,-35149.41431498,0.00011099,2]
[424465410,1780931438000,-1852.9235751,0.00010694,2]
[424465444,1780931438000,-1000.0,0.0001097,2]
[424465442,1780931438000,-150.0,0.00010959,2]
[424465465,1780931438000,-35149.41431498,0.00011099,2]
[424465443,1780931438000,-13104.89,0.0001097,2]
[424465439,1780931438000,-213.23313711,0.00010825,2]
[424465409,1780931438000,-1852.9235751,0.00010694,2]
[424465412,1780931438000,-1852.9235751,0.00010694,2]
[424465414,1780931438000,-1852.9235751,0.00010694,2]
[424465416,1780931438000,-1852.9235751,0.00010694,2]
[424465420,1780931438000,-1852.9235751,0.00010694,2]
[424465418,1780931438000,-1852.9235751,0.00010694,2]
[424465415,1780931438000,-1852.9235751,0.00010694,2]
[424465419,1780931438000,-1852.9235751,0.00010694,2]
[424465417,1780931438000,-1852.9235751,0.00010694,2]
[424465421,1780931438000,-1852.9235751,0.00010694,2]
[424465423,1780931438000,-154.66595597,0.00010725,2]
[424465422,1780931438000,-1383093.49817773,0.00010695,2]
[424465424,1780931438000,-226.69,0.00010779,2]
[424465413,1780931438000,-1852.9235751,0.00010694,2]
[424465427,1780931438000,-500.0,0.00010825,2]
[424465425,1780931438000,-9999.99,0.00010779,2]
[424465440,1780931438000,-154.66595597,0.00010868,2]
[424465437,1780931438000,-500.0,0.00010825,2]
[424465441,1780931438000,-1000.0,0.00010899,2]
[424465436,1780931438000,-174.9440075,0.00010825,2]
[424465434,1780931438000,-500.0,0.00010825,2]
[424465435,1780931438000,-500.0,0.00010825,2]
[424465430,1780931438000,-500.0,0.00010825,2]
[424465431,1780931438000,-500.0,0.00010825,2]
[424465426,1780931438000,-27129.77,0.00010795,2]
[424465433,1780931438000,-500.0,0.00010825,2]
[424465432,1780931438000,-500.0,0.00010825,2]
[424465429,1780931438000,-500.0,0.00010825,2]
[424465428,1780931438000,-500.0,0.00010825,2]
[424465505,1780931439000,-500.0,0.00011197,2]
[424465509,1780931439000,-500.0,0.00011197,2]
[424465507,1780931439000,-500.0,0.00011197,2]
[424465503,1780931439000,-500.0,0.00011197,2]
[424465504,1780931439000,-500.0,0.00011197,2]
[424465502,1780931439000,-500.0,0.00011197,2]
[424465499,1780931439000,-500.0,0.00011197,2]
[424465508,1780931439000,-500.0,0.00011197,2]
[424465501,1780931439000,-500.0,0.00011197,2]
[424465506,1780931439000,-500.0,0.00011197,2]
[424465511,1780931439000,-500.0,0.00011197,2]
[424465515,1780931439000,-500.0,0.00011197,2]
[424465510,1780931439000,-500.0,0.00011197,2]
[424465513,1780931439000,-500.0,0.00011197,2]
[424465514,1780931439000,-500.0,0.00011197,2]
[424465516,1780931439000,-500.0,0.00011197,2]
[424465517,1780931439000,-500.0,0.00011197,2]
[424465521,1780931439000,-500.0,0.00011197,2]
[424465520,1780931439000,-500.0,0.00011197,2]
[424465519,1780931439000,-500.0,0.00011197,2]
[424465500,1780931439000,-500.0,0.00011197,2]
[424465518,1780931439000,-500.0,0.00011197,2]
[424465512,1780931439000,-500.0,0.00011197,2]
[424465497,1780931439000,-500.0,0.00011197,2]
[424465483,1780931439000,-500.0,0.00011099,2]
[424465498,1780931439000,-500.0,0.00011197,2]
[424465522,1780931439000,-500.0,0.00011197,2]
[424465473,1780931439000,-1091.35654828,0.00011099,3]
[424465476,1780931439000,-500.0,0.00011099,2]
[424465475,1780931439000,-500.0,0.00011099,2]
[424465480,1780931439000,-500.0,0.00011099,2]
[424465478,1780931439000,-500.0,0.00011099,2]
[424465474,1780931439000,-164.44385732,0.00011099,2]
[424465477,1780931439000,-500.0,0.00011099,2]
[424465479,1780931439000,-500.0,0.00011099,2]
[424465482,1780931439000,-500.0,0.00011099,2]
[424465481,1780931439000,-500.0,0.00011099,2]
[424465486,1780931439000,-35149.41431498,0.00011101,2]
[424465485,1780931439000,-500.0,0.00011099,2]
[424465484,1780931439000,-500.0,0.00011099,2]
[424465487,1780931439000,-500.0,0.00011133,2]
[424465490,1780931439000,-500.0,0.00011197,2]
[424465491,1780931439000,-500.0,0.00011197,2]
[424465492,1780931439000,-500.0,0.00011197,2]
[424465493,1780931439000,-500.0,0.00011197,2]
[424465488,1780931439000,-168.02,0.0001118,2]
[424465489,1780931439000,-500.0,0.00011197,2]
[424465494,1780931439000,-500.0,0.00011197,2]
[424465495,1780931439000,-500.0,0.00011197,2]
[424465496,1780931439000,-500.0,0.00011197,2]
[424465523,1780931439000,-500.0,0.00011197,2]
[424465531,1780931439000,-500.0,0.00011197,2]
[424465525,1780931439000,-500.0,0.00011197,2]
[424465555,1780931439000,-500.0,0.00011197,2]
[424465558,1780931439000,-500.0,0.00011197,2]
[424465554,1780931439000,-500.0,0.00011197,2]
[424465557,1780931439000,-500.0,0.00011197,2]
[424465559,1780931439000,-500.0,0.00011197,2]
[424465561,1780931439000,-500.0,0.00011197,2]
[424465563,1780931439000,-500.0,0.00011197,2]
[424465562,1780931439000,-500.0,0.00011197,2]
[424465564,1780931439000,-500.0,0.00011197,2]
[424465565,1780931439000,-500.0,0.00011197,2]
[424465566,1780931439000,-500.0,0.00011197,2]
[424465571,1780931439000,-500.0,0.00011197,2]
[424465572,1780931439000,-500.0,0.00011197,2]
[424465569,1780931439000,-500.0,0.00011197,2]
[424465570,1780931439000,-500.0,0.00011197,2]
[424465568,1780931439000,-500.0,0.00011197,2]
[424465567,1780931439000,-500.0,0.00011197,2]
[424465574,1780931439000,-500.0,0.00011197,2]
[424465573,1780931439000,-500.0,0.00011197,2]
[424465575,1780931439000,-500.0,0.00011197,2]
[424465577,1780931439000,-500.0,0.00011197,2]
[424465576,1780931439000,-500.0,0.00011197,2]
[424465524,1780931439000,-500.0,0.00011197,2]
[424465553,1780931439000,-500.0,0.00011197,2]
[424465560,1780931439000,-500.0,0.00011197,2]
[424465578,1780931439000,-201403.82731912,0.000112,2]
[424465550,1780931439000,-500.0,0.00011197,2]
[424465528,1780931439000,-500.0,0.00011197,2]
[424465526,1780931439000,-500.0,0.00011197,2]
[424465529,1780931439000,-500.0,0.00011197,2]
[424465527,1780931439000,-500.0,0.00011197,2]
[424465530,1780931439000,-500.0,0.00011197,2]
[424465532,1780931439000,-500.0,0.00011197,2]
[424465552,1780931439000,-500.0,0.00011197,2]
[424465534,1780931439000,-500.0,0.00011197,2]
[424465536,1780931439000,-500.0,0.00011197,2]
[424465537,1780931439000,-500.0,0.00011197,2]
[424465538,1780931439000,-500.0,0.00011197,2]
[424465533,1780931439000,-500.0,0.00011197,2]
[424465540,1780931439000,-500.0,0.00011197,2]
[424465546,1780931439000,-500.0,0.00011197,2]
[424465549,1780931439000,-500.0,0.00011197,2]
[424465548,1780931439000,-500.0,0.00011197,2]
[424465547,1780931439000,-500.0,0.00011197,2]
[424465539,1780931439000,-500.0,0.00011197,2]
[424465551,1780931439000,-500.0,0.00011197,2]
[424465544,1780931439000,-500.0,0.00011197,2]
[424465543,1780931439000,-500.0,0.00011197,2]
[424465542,1780931439000,-500.0,0.00011197,2]
[424465541,1780931439000,-500.0,0.00011197,2]
[424465545,1780931439000,-500.0,0.00011197,2]
[424465608,1780931440000,-200.0,0.00011423,2]
[424465601,1780931440000,-169.64399403,0.00011342,2]
[424465603,1780931440000,-169.64399403,0.00011342,2]
[424465605,1780931440000,-169.64399403,0.00011343,2]
[424465609,1780931440000,-200.0,0.00011423,2]
[424465611,1780931440000,-200.0,0.00011537,2]
[424465610,1780931440000,-320.0,0.0001152,2]
[424465612,1780931440000,-200.0,0.00011537,2]
[424465614,1780931440000,-457.64,0.000116,2]
[424465613,1780931440000,-200.0,0.00011537,2]
[424465634,1780931440000,-200.0,0.00011653,2]
[424465616,1780931440000,-1280.0,0.00011615,2]
[424465617,1780931440000,-160.0,0.00011636,2]
[424465619,1780931440000,-500.0,0.00011647,2]
[424465622,1780931440000,-500.0,0.00011647,2]
[424465630,1780931440000,-200.0,0.00011653,2]
[424465629,1780931440000,-501.87117652,0.00011647,2]
[424465627,1780931440000,-500.0,0.00011647,2]
[424465624,1780931440000,-505.49510151,0.00011647,2]
[424465636,1780931440000,-200.0,0.00011769,2]
[424465632,1780931440000,-200.0,0.00011653,2]
[424465604,1780931440000,-169.64399403,0.00011343,2]
[424465615,1780931440000,-1440.12,0.000116,2]
[424465607,1780931440000,-200.0,0.00011423,2]
[424465593,1780931440000,-930.9394379,0.00011301,2]
[424465602,1780931440000,-169.64399403,0.00011342,2]
[424465580,1780931440000,-35876.92222168,0.000112,2]
[424465579,1780931440000,-615.0,0.00010551,2]
[424465581,1780931440000,-649.59,0.00011261,2]
[424465638,1780931440000,-200.0,0.00011769,2]
[424465582,1780931440000,-215.86427702,0.00011263,2]
[424465584,1780931440000,-876.43232755,0.00011291,2]
[424465583,1780931440000,-9999.99,0.00011281,2]
[424465585,1780931440000,-2834.48051187,0.00011298,2]
[424465586,1780931440000,-2181.10590754,0.00011298,2]
[424465587,1780931440000,-2617.67609917,0.00011298,2]
[424465606,1780931440000,-500.0,0.00011373,2]
[424465589,1780931440000,-704248.6957713,0.00011301,2]
[424465591,1780931440000,-144966.0371224,0.00011301,2]
[424465588,1780931440000,-841.3188791,0.00011298,2]
[424465597,1780931440000,-200.0,0.0001131,2]
[424465595,1780931440000,-42976.43364382,0.0001131,2]
[424465594,1780931440000,-941.16,0.00011304,2]
[424465596,1780931440000,-200.0,0.0001131,2]
[424465592,1780931440000,-17038.5543737,0.00011301,2]
[424465598,1780931440000,-200.0,0.0001131,2]
[424465599,1780931440000,-151.0,0.0001131,2]
[424465600,1780931440000,-255.0,0.00011335,2]
[424465590,1780931440000,-16088.6834195,0.00011301,2]
[424465642,1780931440000,-152.98,0.00011771,2]
[424465738,1780931440000,-150.0,0.00013488,2]
[424465646,1780931440000,-500.0,0.00011921,2]
[424465696,1780931440000,-1280.0,0.00012906,2]
[424465710,1780931440000,-544.387172,0.0001328,2]
[424465708,1780931440000,-290.020161,0.00013254,2]
[424465700,1780931440000,-500.0,0.00013017,2]
[424465698,1780931440000,-320.0,0.0001296,2]
[424465712,1780931440000,-500.0,0.00013291,2]
[424465702,1780931440000,-452.0,0.00013079,2]
[424465704,1780931440000,-442.0,0.00013079,2]
[424465716,1780931440000,-216.432424,0.00013346,2]
[424465714,1780931440000,-621.10232979,0.00013324,2]
[424465706,1780931440000,-206.42,0.00013104,2]
[424465718,1780931440000,-172.99202504,0.00013395,2]
[424465722,1780931440000,-150.0,0.00013395,2]
[424465730,1780931440000,-455.0,0.00013488,2]
[424465726,1780931440000,-442.0,0.00013488,2]
[424465732,1780931440000,-150.0,0.00013488,2]
[424465728,1780931440000,-456.0,0.00013488,2]
[424465736,1780931440000,-150.0,0.00013488,2]
[424465734,1780931440000,-150.0,0.00013488,2]
[424465742,1780931440000,-150.0,0.00013488,2]
[424465740,1780931440000,-150.0,0.00013488,2]
[424465640,1780931440000,-200.0,0.00011769,2]
[424465720,1780931440000,-161.49601252,0.00013395,2]
[424465694,1780931440000,-158.0,0.000129,2]
[424465724,1780931440000,-445.0,0.00013488,2]
[424465690,1780931440000,-286.05,0.00012813,2]
[424465692,1780931440000,-159.88927105,0.00012857,2]
[424465648,1780931440000,-1324.43712459,0.00011958,2]
[424465652,1780931440000,-168.02,0.00012032,2]
[424465650,1780931440000,-332.31887639,0.00012,2]
[424465656,1780931440000,-160.44,0.00012329,2]
[424465654,1780931440000,-500.0,0.00012195,2]
[424465644,1780931440000,-193.35541125,0.00011845,2]
[424465660,1780931440000,-547.94887216,0.00012361,2]
[424465662,1780931440000,-433.0,0.0001245,2]
[424465664,1780931440000,-500.0,0.00012469,2]
[424465666,1780931440000,-941.16,0.0001256,2]
[424465658,1780931440000,-203.41,0.00012329,2]
[424465673,1780931440000,-265.362903,0.00012622,2]
[424465686,1780931440000,-500.0,0.00012743,2]
[424465669,1780931440000,-160.0,0.00012622,2]
[424465684,1780931440000,-476.151334,0.00012711,2]
[424465682,1780931440000,-166.62,0.00012707,2]
[424465671,1780931440000,-212.681451,0.00012622,2]
[424465688,1780931440000,-405.39937349,0.00012795,2]
[424465678,1780931440000,-399.21726,0.00012648,2]
[424465680,1780931440000,-638.43452,0.00012648,2]
[424465675,1780931440000,-172.894509,0.00012648,2]
[424465676,1780931440000,-160.0,0.00012648,2]
[424465797,1780931441000,-500.0,0.00013698,2]
[424465794,1780931441000,-526.36523084,0.00013698,2]
[424465798,1780931441000,-500.0,0.00013698,2]
[424465795,1780931441000,-500.0,0.00013698,2]
[424465805,1780931441000,-500.0,0.00013698,2]
[424465793,1780931441000,-500.0,0.00013698,2]
[424465789,1780931441000,-500.0,0.00013698,2]
[424465788,1780931441000,-523.25020934,0.00013698,2]
[424465790,1780931441000,-500.0,0.00013698,2]
[424465791,1780931441000,-500.0,0.00013698,2]
[424465786,1780931441000,-500.0,0.00013698,2]
[424465787,1780931441000,-500.0,0.00013698,2]
[424465792,1780931441000,-500.0,0.00013698,2]
[424465796,1780931441000,-500.0,0.00013698,2]
[424465811,1780931441000,-289.51,0.00013698,2]
[424465802,1780931441000,-500.0,0.00013698,2]
[424465799,1780931441000,-500.0,0.00013698,2]
[424465803,1780931441000,-500.0,0.00013698,2]
[424465801,1780931441000,-500.0,0.00013698,2]
[424465804,1780931441000,-500.0,0.00013698,2]
[424465806,1780931441000,-500.0,0.00013698,2]
[424465807,1780931441000,-500.0,0.00013698,2]
[424465809,1780931441000,-500.0,0.00013698,2]
[424465810,1780931441000,-500.0,0.00013698,2]
[424465808,1780931441000,-500.0,0.00013698,2]
[424465814,1780931441000,-500.0,0.00013698,2]
[424465818,1780931441000,-500.0,0.00013698,2]
[424465815,1780931441000,-500.0,0.00013698,2]
[424465782,1780931441000,-500.0,0.00013698,2]
[424465800,1780931441000,-500.0,0.00013698,2]
[424465785,1780931441000,-500.0,0.00013698,2]
[424465759,1780931441000,-150.0,0.00013624,2]
[424465784,1780931441000,-311.99555842,0.00013698,2]
[424465744,1780931441000,-150.0,0.00013488,2]
[424465746,1780931441000,-150.0,0.00013488,2]
[424465748,1780931441000,-150.0,0.00013488,2]
[424465750,1780931441000,-203.80794025,0.00013488,2]
[424465751,1780931441000,-150.0,0.00013488,2]
[424465752,1780931441000,-150.0,0.00013488,2]
[424465754,1780931441000,-158.0,0.000135,2]
[424465761,1780931441000,-150.0,0.00013654,2]
[424465813,1780931441000,-552.75491303,0.00013698,2]
[424465758,1780931441000,-150.0,0.00013571,2]
[424465763,1780931441000,-500.0,0.00013698,2]
[424465756,1780931441000,-500.0,0.00013565,2]
[424465764,1780931441000,-500.0,0.00013698,2]
[424465762,1780931441000,-736.0,0.00013668,2]
[424465765,1780931441000,-500.0,0.00013698,2]
[424465766,1780931441000,-481.07233476,0.00013698,2]
[424465769,1780931441000,-500.65266857,0.00013698,2]
[424465781,1780931441000,-500.0,0.00013698,2]
[424465779,1780931441000,-161.86801858,0.00013698,2]
[424465780,1780931441000,-500.0,0.00013698,2]
[424465775,1780931441000,-500.0,0.00013698,2]
[424465777,1780931441000,-500.0,0.00013698,2]
[424465773,1780931441000,-500.0,0.00013698,2]
[424465783,1780931441000,-500.0,0.00013698,2]
[424465776,1780931441000,-500.0,0.00013698,2]
[424465772,1780931441000,-500.0,0.00013698,2]
[424465774,1780931441000,-406.42526291,0.00013698,2]
[424465771,1780931441000,-500.0,0.00013698,2]
[424465767,1780931441000,-500.0,0.00013698,2]
[424465778,1780931441000,-500.0,0.00013698,2]
[424465770,1780931441000,-500.0,0.00013698,2]
[424465768,1780931441000,-501.51171247,0.00013698,2]
[424465812,1780931441000,-500.0,0.00013698,2]
[424465817,1780931441000,-500.0,0.00013698,2]
[424465820,1780931441000,-500.0,0.00013698,2]
[424465854,1780931441000,-500.0,0.00013698,2]
[424465857,1780931441000,-500.0,0.00013698,2]
[424465858,1780931441000,-500.0,0.00013698,2]
[424465855,1780931441000,-500.0,0.00013698,2]
[424465856,1780931441000,-225.62301577,0.00013698,2]
[424465861,1780931441000,-500.0,0.00013698,2]
[424465860,1780931441000,-500.0,0.00013698,2]
[424465863,1780931441000,-500.0,0.00013698,2]
[424465871,1780931441000,-500.0,0.00013698,2]
[424465873,1780931441000,-500.0,0.00013698,2]
[424465872,1780931441000,-500.0,0.00013698,2]
[424465866,1780931441000,-500.0,0.00013698,2]
[424465867,1780931441000,-500.0,0.00013698,2]
[424465864,1780931441000,-238.00578641,0.00013698,2]
[424465852,1780931441000,-500.0,0.00013698,2]
[424465865,1780931441000,-500.0,0.00013698,2]
[424465869,1780931441000,-500.0,0.00013698,2]
[424465868,1780931441000,-322.71289429,0.00013698,2]
[424465870,1780931441000,-500.0,0.00013698,2]
[424465874,1780931441000,-500.0,0.00013698,2]
[424465876,1780931441000,-500.0,0.00013698,2]
[424465878,1780931441000,-500.0,0.00013698,2]
[424465877,1780931441000,-500.0,0.00013698,2]
[424465875,1780931441000,-503.93302661,0.00013698,2]
[424465879,1780931441000,-500.0,0.00013698,2]
[424465816,1780931441000,-500.0,0.00013698,2]
[424465880,1780931441000,-500.0,0.00013698,2]
[424465881,1780931441000,-500.0,0.00013698,2]
[424465883,1780931441000,-500.0,0.00013698,2]
[424465884,1780931441000,-500.0,0.00013698,2]
[424465862,1780931441000,-500.0,0.00013698,2]
[424465859,1780931441000,-500.0,0.00013698,2]
[424465882,1780931441000,-514.86964047,0.00013698,2]
[424465850,1780931441000,-206.103436,0.00013698,2]
[424465853,1780931441000,-500.0,0.00013698,2]
[424465819,1780931441000,-500.0,0.00013698,2]
[424465822,1780931441000,-500.0,0.00013698,2]
[424465832,1780931441000,-531.94649365,0.00013698,2]
[424465824,1780931441000,-500.0,0.00013698,2]
[424465823,1780931441000,-500.0,0.00013698,2]
[424465828,1780931441000,-500.0,0.00013698,2]
[424465831,1780931441000,-580.2951521,0.00013698,2]
[424465826,1780931441000,-500.0,0.00013698,2]
[424465825,1780931441000,-500.0,0.00013698,2]
[424465827,1780931441000,-500.0,0.00013698,2]
[424465830,1780931441000,-500.0,0.00013698,2]
[424465829,1780931441000,-500.0,0.00013698,2]
[424465833,1780931441000,-500.0,0.00013698,2]
[424465834,1780931441000,-500.0,0.00013698,2]
[424465821,1780931441000,-500.0,0.00013698,2]
[424465841,1780931441000,-500.0,0.00013698,2]
[424465835,1780931441000,-500.0,0.00013698,2]
[424465849,1780931441000,-500.0,0.00013698,2]
[424465847,1780931441000,-497.98493118,0.00013698,2]
[424465840,1780931441000,-500.0,0.00013698,2]
[424465842,1780931441000,-500.0,0.00013698,2]
[424465837,1780931441000,-500.0,0.00013698,2]
[424465848,1780931441000,-500.0,0.00013698,2]
[424465836,1780931441000,-500.0,0.00013698,2]
[424465843,1780931441000,-500.0,0.00013698,2]
[424465845,1780931441000,-500.0,0.00013698,2]
[424465839,1780931441000,-500.0,0.00013698,2]
[424465851,1780931441000,-500.0,0.00013698,2]
[424465846,1780931441000,-500.0,0.00013698,2]
[424465838,1780931441000,-500.0,0.00013698,2]
[424465844,1780931441000,-500.0,0.00013698,2]
[424465926,1780931442000,-150.0,0.00013987,2]
[424465927,1780931442000,-250.0,0.00014,2]
[424465916,1780931442000,-166.66,0.00013836,2]
[424465920,1780931442000,-150.0,0.00013896,2]
[424465919,1780931442000,-150.0,0.00013862,2]
[424465922,1780931442000,-166.66,0.00013973,2]
[424465925,1780931442000,-150.0,0.00013987,2]
[424465921,1780931442000,-150.0,0.00013904,2]
[424465923,1780931442000,-428.4,0.00013985,2]
[424465924,1780931442000,-150.0,0.00013987,2]
[424465917,1780931442000,-500.0,0.00013839,2]
[424465918,1780931442000,-302.97,0.0001384,2]
[424465933,1780931442000,-150.0,0.00014169,2]
[424465929,1780931442000,-150.0,0.0001407,2]
[424465930,1780931442000,-166.66,0.0001411,2]
[424465931,1780931442000,-500.0,0.00014113,2]
[424465935,1780931442000,-169.71,0.0001421,2]
[424465934,1780931442000,-1280.0,0.00014196,2]
[424465941,1780931442000,-150.0,0.00014237,2]
[424465932,1780931442000,-150.0,0.00014154,2]
[424465938,1780931442000,-150.0,0.00014237,2]
[424465939,1780931442000,-150.0,0.00014237,2]
[424465942,1780931442000,-150.0,0.00014237,2]
[424465937,1780931442000,-169.71,0.0001421,2]
[424465915,1780931442000,-150.0,0.00013821,2]
[424465928,1780931442000,-150.0,0.00014033,2]
[424465914,1780931442000,-941.16,0.00013816,2]
[424465889,1780931442000,-168.74,0.00013699,2]
[424465911,1780931442000,-150.0,0.00013737,2]
[424465885,1780931442000,-500.0,0.00013698,2]
[424465886,1780931442000,-1098.36,0.00013699,2]
[424465887,1780931442000,-200.0,0.00013699,2]
[424465888,1780931442000,-2500.0,0.00013699,2]
[424465890,1780931442000,-843.7,0.00013699,2]
[424465899,1780931442000,-500.0,0.00013699,2]
[424465900,1780931442000,-581.08566082,0.00013699,2]
[424465901,1780931442000,-500.0,0.00013699,2]
[424465892,1780931442000,-500.0,0.00013699,10]
[424465891,1780931442000,-166.66,0.00013699,2]
[424465895,1780931442000,-1000.0,0.00013699,15]
[424465893,1780931442000,-423.01828994,0.00013699,10]
[424465912,1780931442000,-150.0,0.00013737,2]
[424465896,1780931442000,-1000.0,0.00013699,15]
[424465897,1780931442000,-500.0,0.00013699,2]
[424465898,1780931442000,-500.0,0.00013699,2]
[424465902,1780931442000,-600.0,0.00013699,2]
[424465903,1780931442000,-500.0,0.00013699,2]
[424465908,1780931442000,-1571.88,0.000137,2]
[424465910,1780931442000,-150.0,0.00013737,2]
[424465909,1780931442000,-160.0,0.000137,2]
[424465905,1780931442000,-500.0,0.00013699,2]